bitfinex/quotes_SOLUSD_20240902
["timestamp","ask_amount","ask_price","bid_price","bid_amount"]
[1725320223430,7.3742,135.61,135.57,1.4749608]
[1725320223729,7.3742,135.61,135.56,7.3766]
[1725320224528,7.3748,135.6,135.56,7.3766]
[1725320225327,7.3748,135.6,135.55,25.8197]
[1725320225509,7.3753,135.59,135.55,25.8197]
[1725320226230,7.3753,135.59,135.55,27.29490194]
[1725320228719,7.3741,135.61,135.57,7.3761]
[1725320229024,7.3741,135.61,135.56,7.3767]
[1725320235317,0.12549,135.64,135.57,18.4395]
[1725320235629,7.375,135.6,135.56,7.3767]
[1725320236108,7.3752,135.59,135.55,7.3772]
[1725320237134,7.3752,135.59,135.55,8.85240206]
[1725320238314,7.3752,135.59,135.55,7.3772]
[1725320240036,7.3747,135.6,135.56,7.3767]
[1725320253034,0.12549,135.64,135.57,8.85091448]
[1725320253348,7.373,135.63,135.58,18.4389]
[1725320253520,7.373,135.63,135.59,1.47476392]
[1725320254352,7.373,135.63,135.59,8.84986392]
[1725320256332,7.373,135.63,135.59,1.47476392]
[1725320256851,0.12549,135.62,135.56,7.3762]
[1725320257046,7.3741,135.61,135.57,7.3761]
[1725320260955,7.3741,135.61,135.58,1.47493158]
[1725320261132,7.49919,135.62,135.58,1.47493158]
[1725320262042,7.3731,135.63,135.58,7.3753]
[1725320265830,7.49909,135.62,135.58,7.3753]
[1725320266029,7.3736,135.62,135.58,7.3753]
[1725320266232,7.3741,135.61,135.57,25.8159]
[1725320268937,7.3741,135.61,135.57,18.4397]
[1725320270255,7.3746,135.6,135.56,7.3766]
[1725320272936,7.3746,135.6,135.55,7.3772]
[1725320273140,18.04122645,135.6,135.55,7.3772]
[1725320279365,0.12549,135.59,135.54,41.229]
[1725320280259,7.3757,135.58,135.54,41.229]
[1725320280636,7.3753,135.59,135.55,8.85244515]
[1725320280832,7.3753,135.59,135.54,33.8513]
[1725320280833,7.3745,135.61,135.56,7.3766]
[1725320281031,10.66662645,135.63,135.56,7.3766]
[1725320281032,7.3747,135.6,135.56,8.85174249]
[1725320281261,7.3747,135.6,135.56,7.3766]
[1725320281568,7.3758,135.58,135.54,41.2291]
[1725320281740,7.3752,135.59,135.54,41.2291]
[1725320282061,7.3752,135.59,135.55,8.85232324]
[1725320286775,7.3752,135.59,135.55,7.3771]
[1725320287383,0.12549,135.58,135.54,41.229]
[1725320288675,7.50119,135.58,135.54,41.229]
[1725320291772,0.12549,135.58,135.54,41.229]
[1725320291963,7.3763,135.57,135.52,7.3784]
[1725320292168,7.3751,135.6,135.55,18.4428]
[1725320292364,7.3742,135.61,135.56,8.85179021]
[1725320292557,7.3736,135.62,135.57,7.3761]
[1725320292751,7.3736,135.62,135.58,1.47494002]
[1725320293865,7.3736,135.62,135.58,8.85044002]
[1725320294072,7.373,135.63,135.58,8.85044002]
[1725320294273,7.3725,135.64,135.59,7.3751]
[1725320294581,21.9776,135.67,135.59,7.3751]
[1725320294582,7.3734,135.63,135.59,15.2849]
[1725320295073,7.3734,135.63,135.59,16.75970271]
[1725320295455,21.9776,135.67,135.6,1.47480271]
[1725320295660,7.3714,135.66,135.61,7.374]
[1725320296068,7.3714,135.66,135.62,7.3734]
[1725320300682,7.3714,135.66,135.63,1.47442191]
[1725320300876,0.12549,135.69,135.63,8.84728901]
[1725320301058,7.3703,135.68,135.63,8.84728901]
[1725320301260,18.03622645,135.7,135.65,7.3718]
[1725320301478,7.3696,135.7,135.65,7.3718]
[1725320301672,7.3696,135.7,135.66,1.47409503]
[1725320304882,7.3696,135.7,135.66,1.47409503]
[1725320305880,7.61968,135.71,135.66,8.84539073]
[1725320306389,7.3694,135.7,135.65,25.8008]
[1725320308874,18.03602645,135.7,135.65,25.8008]
[1725320311487,7.3697,135.69,135.65,25.8008]
[1725320313978,7.3697,135.69,135.65,27.27489607]
[1725320315071,7.3697,135.69,135.65,25.8008]
[1725320315478,7.3697,135.69,135.66,1.47409524]
[1725320316282,7.3693,135.7,135.66,1.47409524]
[1725320321498,10.66662645,135.7,135.64,15.6622]
[1725320321667,7.3718,135.66,135.64,15.6622]
[1725320323772,7.3703,135.68,135.64,15.6622]
[1725320325498,7.3703,135.68,135.64,23.0344]
[1725320326881,7.3698,135.69,135.64,23.0344]
[1725320327512,7.3687,135.71,135.67,7.3706]
[1725320327798,7.3681,135.72,135.68,8.84387079]
[1725320328389,7.3681,135.72,135.68,7.37]
[1725320329779,7.3681,135.72,135.67,7.3708]
[1725320330184,7.3681,135.72,135.68,1.47381863]
[1725320331492,7.3681,135.72,135.68,1.47376189]
[1725320331692,7.3681,135.72,135.67,7.3708]
[1725320336401,7.3681,135.72,135.68,1.47374789]
[1725320336710,7.3681,135.72,135.67,7.3708]
[1725320337202,7.3681,135.72,135.68,7.3702]
[1725320337700,21.8084,135.78,135.71,7.3686]
[1725320337901,7.3663,135.76,135.72,1.473334]
[1725320339205,10.66662645,135.78,135.72,1.473334]
[1725320339206,9.07546026,135.81,135.73,17.90253735]
[1725320339392,7.3637,135.81,135.76,25.7799]
[1725320339833,7.3638,135.8,135.76,25.7799]
[1725320340489,7.3638,135.8,135.76,18.4141]
[1725320342602,7.48989,135.79,135.74,7.3668]
[1725320342919,7.3654,135.77,135.73,34.8476]
[1725320343081,10.91760645,135.78,135.73,34.8476]
[1725320343280,0.12549,135.77,135.73,34.8476]
[1725320343495,0.12549,135.77,135.73,36.32088988]
[1725320344003,0.12549,135.77,135.73,16.4292]
[1725320344789,10.79211645,135.76,135.71,7.3685]
[1725320344983,0.12549,135.75,135.7,18.4223]
[1725320345288,7.49199,135.75,135.7,25.7914]
[1725320345607,7.3671,135.74,135.7,25.7914]
[1725320345801,18.03372645,135.74,135.7,25.7914]
[1725320346014,7.49319,135.73,135.69,15.7205]
[1725320346503,7.49319,135.73,135.64,10.66662645]
[1725320346504,18.03522645,135.72,135.66,22.3833]
[1725320346709,0.12549,135.71,135.66,22.3833]
[1725320348408,0.12549,135.71,135.67,8.84461311]
[1725320348610,0.12549,135.73,135.68,7.3701]
[1725320348912,10.91760645,135.74,135.69,1.47372276]
[1725320349101,27.3665,135.75,135.7,7.3691]
[1725320349295,7.3671,135.74,135.69,7.3696]
[1725320349491,7.3671,135.74,135.7,1.47350495]
[1725320349891,7.3671,135.74,135.69,7.3696]
[1725320350907,7.3676,135.73,135.69,7.3696]
[1725320351800,7.61808,135.74,135.69,7.3696]
[1725320353196,7.61808,135.74,135.7,1.47363937]
[1725320356517,7.49259,135.74,135.7,8.84273937]
[1725320358006,7.49259,135.74,135.7,1.47363937]
[1725320358307,7.49259,135.74,135.67,18.4266]
[1725320358308,7.3681,135.72,135.67,18.4266]
[1725320358706,7.3681,135.72,135.67,25.797]
[1725320360400,0.12549,135.71,135.67,25.797]
[1725320361700,7.49409,135.71,135.67,25.797]
[1725320365138,7.3694,135.7,135.66,15.0121]
[1725320366621,7.3694,135.7,135.66,22.3833]
[1725320368429,7.3694,135.7,135.66,15.0121]
[1725320368611,7.3694,135.7,135.67,1.47399755]
[1725320369515,7.3694,135.7,135.66,22.3834]
[1725320369710,7.3694,135.7,135.66,23.85739913]
[1725320370737,7.3694,135.7,135.67,1.47399794]
[1725320374129,7.37,135.69,135.65,7.3718]
[1725320374441,7.37,135.69,135.64,25.8025]
[1725320375141,7.37,135.69,135.65,8.84590813]
[1725320375917,7.49479,135.7,135.65,8.84590813]
[1725320376636,10.79211645,135.71,135.65,8.84590813]
[1725320376637,0.12549,135.71,135.66,18.4277]
[1725320376839,7.3686,135.71,135.67,1.47396468]
[1725320377139,0.12549,135.7,135.67,1.47396468]
[1725320378140,7.3686,135.71,135.67,1.47396468]
[1725320386645,0.12549,135.72,135.69,7.3697]
[1725320387016,0.12549,135.72,135.69,1.47377749]
[1725320387424,0.12549,135.72,135.66,1.47378614]
[1725320388326,7.49369,135.72,135.67,7.3706]
[1725320388651,7.49369,135.72,135.68,1.47381408]
[1725320390950,7.49369,135.72,135.68,7.3701]
[1725320391446,7.49369,135.72,135.68,8.84388939]
[1725320392143,7.49369,135.72,135.68,7.3701]
[1725320393736,7.49369,135.72,135.68,8.84393391]
[1725320393953,7.3677,135.73,135.68,8.84393391]
[1725320394139,7.3677,135.73,135.69,7.3695]
[1725320396117,7.3663,135.76,135.71,7.3685]
[1725320396330,7.3665,135.75,135.71,7.3685]
[1725320396939,7.3665,135.75,135.72,1.47344584]
[1725320399255,7.3665,135.75,135.71,7.3685]
[1725320401350,18.03312645,135.75,135.7,7.3691]
[1725320401649,7.3671,135.74,135.7,7.3691]
[1725320401858,7.49259,135.74,135.7,7.3691]
[1725320402238,63.28520645,135.73,135.69,18.4239]
[1725320402440,0.12549,135.72,135.69,18.4239]
[1725320403129,7.3688,135.71,135.67,7.3707]
[1725320403353,7.49369,135.72,135.67,7.3707]
[1725320404443,7.3688,135.71,135.67,7.3707]
[1725320405732,0.12549,135.72,135.66,33.6853]
[1725320405938,0.12549,135.72,135.61,36.8677]
[1725320405939,10.66662645,135.69,135.63,33.7944]
[1725320406158,10.66662645,135.69,135.63,25.8043]
[1725320406159,7.49579,135.68,135.63,25.8043]
[1725320407362,7.49579,135.68,135.64,7.3724]
[1725320407557,0.12549,135.68,135.64,7.3724]
[1725320407738,0.25098,135.68,135.64,7.3724]
[1725320409739,0.25098,135.68,135.65,7.3719]
[1725320410541,45.25098,135.68,135.65,7.3719]
[1725320412254,0.12549,135.66,135.63,25.8047]
[1725320412555,45.37647,135.66,135.63,25.8047]
[1725320413155,45.37647,135.66,135.63,18.4318]
[1725320415341,52.74827,135.66,135.61,7.3739]
[1725320415660,10.66662645,135.65,135.61,7.3739]
[1725320415869,0.12549,135.64,135.6,25.8104]
[1725320416361,0.25098,135.64,135.6,25.8104]
[1725320418676,45.25098,135.64,135.6,25.8104]
[1725320419853,52.62348,135.64,135.6,25.8104]
[1725320420053,52.62348,135.64,135.6,18.436]
[1725320420865,0.12549,135.63,135.6,18.436]
[1725320421048,0.25098,135.63,135.6,18.436]
[1725320421373,0.12549,135.62,135.6,18.436]
[1725320422576,0.12549,135.62,135.59,7.375]
[1725320422771,0.25098,135.62,135.59,7.375]
[1725320424250,10.79211645,135.63,135.59,7.375]
[1725320424559,10.66662645,135.63,135.59,7.375]
[1725320425271,0.25098,135.62,135.59,7.375]
[1725320426853,0.25098,135.62,135.57,18.4398]
[1725320426854,7.62488,135.62,135.57,25.8155]
[1725320429581,7.62488,135.62,135.58,7.3755]
[1725320429758,67.4393,135.64,135.59,7.3747]
[1725320429759,40.47872645,135.64,135.59,7.3747]
[1725320430078,40.47872645,135.64,135.6,7.3745]
[1725320430257,40.47872645,135.64,135.59,7.3751]
[1725320430785,10.66662645,135.62,135.58,7.3755]
[1725320431076,18.04022645,135.62,135.58,7.3755]
[1725320431374,0.12549,135.61,135.58,7.3755]
[1725320436174,45.12549,135.61,135.58,7.3755]
[1725320436679,40.47842645,135.64,135.59,7.3746]
[1725320436974,0.12549,135.63,135.59,7.3746]
[1725320437278,0.12549,135.63,135.6,7.3745]
[1725320438670,29.8118,135.64,135.6,7.3745]
[1725320440165,0.12549,135.63,135.6,7.3745]
[1725320440784,45.25098,135.63,135.6,7.3745]
[1725320443677,7.3717,135.66,135.61,7.3736]
[1725320443884,10.66662645,135.66,135.62,7.3734]
[1725320444264,18.03822645,135.66,135.62,7.3734]
[1725320444667,10.66662645,135.64,135.61,25.8087]
[1725320445171,0.12549,135.63,135.61,25.8087]
[1725320446200,0.12549,135.63,135.61,18.4347]
[1725320446490,0.25098,135.63,135.61,18.4347]
[1725320446682,10.66662645,135.62,135.58,18.4383]
[1725320446873,10.66662645,135.62,135.58,25.8135]
[1725320447080,0.12549,135.63,135.59,7.3749]
[1725320447262,0.12549,135.63,135.6,7.3745]
[1725320447963,45.25098,135.63,135.59,7.375]
[1725320448368,45.12549,135.63,135.6,7.3744]
[1725320448574,0.12549,135.63,135.6,7.3744]
[1725320451874,10.66662645,135.64,135.61,7.374]
[1725320458694,7.3714,135.66,135.62,7.3734]
[1725320458992,7.62178,135.67,135.61,1.47453816]
[1725320459195,7.3714,135.66,135.62,7.3733]
[1725320462201,7.3721,135.65,135.61,7.374]
[1725320462504,0.12549,135.64,135.6,25.8103]
[1725320462667,10.66662645,135.63,135.6,25.8103]
[1725320462875,0.25098,135.62,135.57,18.4397]
[1725320463077,0.25098,135.62,135.54,53.0113]
[1725320463078,18.16651645,135.61,135.56,7.3766]
[1725320463501,18.04182645,135.59,135.54,41.9453]
[1725320463806,18.04182645,135.59,135.55,8.85247496]
[1725320465187,7.3749,135.6,135.55,8.85247496]
[1725320468078,18.16631645,135.61,135.55,1.47527496]
[1725320468291,18.04002645,135.63,135.58,7.3757]
[1725320469588,0.12549,135.62,135.58,7.3757]
[1725320469786,23.4728,135.64,135.59,7.375]
[1725320470083,18.03912645,135.64,135.6,1.47472213]
[1725320470478,18.03912645,135.64,135.6,7.3746]
[1725320475405,18.03912645,135.64,135.59,7.3751]
[1725320475592,10.66662645,135.62,135.59,7.3751]
[1725320476006,10.66662645,135.62,135.58,25.8143]
[1725320476202,18.04032645,135.62,135.58,25.8143]
[1725320476414,18.04032645,135.62,135.58,18.4387]
[1725320477124,10.66662645,135.61,135.58,18.4387]
[1725320481316,7.3737,135.62,135.58,18.4387]
[1725320481520,18.04032645,135.62,135.58,18.4387]
[1725320483615,7.3742,135.61,135.57,7.3761]
[1725320484827,18.04132645,135.6,135.55,25.8196]
[1725320485008,18.04132645,135.6,135.56,8.85159546]
[1725320488928,10.66662645,135.6,135.56,8.85159546]
[1725320492019,7.3742,135.61,135.57,7.3761]
[1725320493343,18.04032645,135.62,135.57,7.3761]
[1725320494234,7.3741,135.61,135.57,7.3761]
[1725320495421,18.16691645,135.6,135.56,7.3766]
[1725320495730,18.04142645,135.6,135.56,7.3766]
[1725320500109,7.3753,135.59,135.55,25.82]
[1725320500920,7.3753,135.59,135.55,27.29520355]
[1725320501716,18.04132645,135.6,135.55,27.29520355]
[1725320503118,0.12549,135.59,135.55,27.29520355]
[1725320504928,10.66662645,135.58,135.55,25.82]
[1725320506419,10.66662645,135.58,135.55,18.4428]
[1725320511739,10.66662645,135.58,135.53,7.3782]
[1725320511740,0.12549,135.57,135.53,7.3782]
[1725320512450,7.50179,135.57,135.53,7.3782]
[1725320516138,0.12549,135.57,135.54,7.3774]
[1725320516334,0.12549,135.57,135.52,19.92202143]
[1725320516335,45.25098,135.57,135.53,7.3782]
[1725320516534,10.79211645,135.56,135.49,6.126]
[1725320516849,7.3799,135.51,135.47,3.31239115]
[1725320517024,18.04562645,135.52,135.47,10.69399115]
[1725320517225,18.04562645,135.52,135.47,7.3816]
[1725320518659,18.04562645,135.52,135.46,18.4549]
[1725320518660,7.62948,135.53,135.48,7.3808]
[1725320518949,18.17061645,135.53,135.48,7.3808]
[1725320519745,10.79211645,135.53,135.49,7.3804]
[1725320520356,18.17061645,135.53,135.49,7.3804]
[1725320520644,18.17061645,135.53,135.48,7.381]
[1725320520854,10.79211645,135.53,135.46,18.4549]
[1725320521531,10.79211645,135.53,135.47,1.4759622]
[1725320521739,10.79211645,135.53,135.46,18.4549]
[1725320521740,0.12549,135.52,135.46,18.4549]
[1725320521937,10.79211645,135.53,135.47,1.47606854]
[1725320522456,0.12549,135.53,135.49,7.3805]
[1725320522844,0.12549,135.53,135.48,7.381]
[1725320523040,0.12549,135.53,135.49,1.47591296]
[1725320523548,7.50409,135.53,135.49,1.47591296]
[1725320524048,7.379,135.52,135.49,1.47591296]
[1725320524250,0.12549,135.53,135.48,1.47591446]
[1725320525336,7.50399,135.53,135.48,8.85701446]
[1725320525643,7.50399,135.53,135.48,7.3811]
[1725320525849,7.3791,135.52,135.47,7.3814]
[1725320526236,0.12549,135.56,135.47,10.66662645]
[1725320526424,7.3782,135.54,135.49,7.3805]
[1725320526624,7.3782,135.54,135.5,1.47578243]
[1725320528235,7.3782,135.54,135.49,7.3805]
[1725320528451,27.3773,135.56,135.5,17.59738239]
[1725320528654,7.3773,135.56,135.5,17.59738239]
[1725320528851,6.4769,135.57,135.5,17.59738239]
[1725320528852,7.3773,135.55,135.5,41.9511]
[1725320530451,7.3773,135.55,135.5,25.8295]
[1725320530640,7.50339,135.54,135.5,18.4495]
[1725320531339,7.50339,135.54,135.5,19.92531514]
[1725320533043,7.3774,135.55,135.51,1.47575886]
[1725320533350,7.3774,135.55,135.5,18.4495]
[1725320534354,7.3774,135.55,135.51,7.3794]
[1725320535459,7.3769,135.56,135.51,7.3794]
[1725320538851,0.12549,135.57,135.52,19.92222019]
[1725320539159,7.50179,135.57,135.53,7.3784]
[1725320540264,7.3758,135.58,135.54,1.4754098]
[1725320540455,7.3758,135.58,135.53,7.3784]
[1725320540861,7.3763,135.57,135.53,7.3784]
[1725320542164,7.3758,135.58,135.52,18.4467]
[1725320542335,7.50099,135.59,135.54,7.3778]
[1725320542860,7.3757,135.58,135.54,7.3778]
[1725320543535,7.50079,135.59,135.55,1.47526819]
[1725320543738,7.50079,135.59,135.54,7.3778]
[1725320545345,7.3739,135.62,135.57,7.3762]
[1725320545669,7.3739,135.62,135.58,1.47497068]
[1725320548576,7.3739,135.62,135.58,8.85057068]
[1725320548769,7.3739,135.62,135.58,7.3756]
[1725320549071,7.3739,135.62,135.58,8.85046158]
[1725320549653,10.66662645,135.65,135.59,7.3748]
[1725320549868,0.12549,135.64,135.6,1.4747292]
[1725320550257,29.09572645,135.66,135.6,1.4747292]
[1725320550465,22.2031,135.67,135.6,8.8493292]
[1725320550466,7.3725,135.64,135.6,8.8493292]
[1725320550675,7.3725,135.64,135.6,7.3746]
[1725320551772,7.3732,135.63,135.59,23.9943]
[1725320551976,7.374,135.61,135.56,23.9959]
[1725320552185,7.3756,135.59,135.56,16.6193]
[1725320552384,10.79211645,135.59,135.52,34.3057]
[1725320552683,7.3763,135.57,135.52,41.6842]
[1725320557856,7.3763,135.57,135.53,7.3783]
[1725320560477,7.3769,135.56,135.52,41.6846]
[1725320562276,10.79211645,135.59,135.52,15.8588]
[1725320562462,10.66662645,135.55,135.49,18.4512]
[1725320562651,7.378,135.54,135.49,25.8314]
[1725320563469,7.378,135.54,135.5,1.4757655]
[1725320567867,7.378,135.54,135.49,25.8314]
[1725320570289,7.378,135.54,135.49,27.30716857]
[1725320571063,7.378,135.54,135.49,25.8314]
[1725320573866,30.91760645,135.53,135.46,18.4548]
[1725320574093,30.79211645,135.53,135.46,18.4548]
[1725320574269,45.12549,135.52,135.46,18.4548]
[1725320575271,7.3798,135.51,135.46,25.8369]
[1725320584907,7.3802,135.5,135.46,25.8369]
[1725320585405,45.12549,135.52,135.45,23.6076]
[1725320585406,7.50619,135.49,135.45,23.6076]
[1725320585905,7.3807,135.49,135.45,23.6076]
[1725320586878,7.3801,135.5,135.46,7.3822]
[1725320587104,7.3793,135.52,135.47,1.47615341]
[1725320587298,7.3788,135.53,135.48,7.3807]
[1725320589317,7.3791,135.52,135.48,7.3807]
[1725320590199,7.3791,135.52,135.49,1.47591325]
[1725320594116,7.3785,135.53,135.49,1.47578384]
[1725320594494,7.3785,135.53,135.48,7.3807]
[1725320595036,0.12549,135.54,135.47,29.12022645]
[1725320595037,7.3793,135.52,135.47,36.50142645]
[1725320595314,7.3793,135.52,135.47,25.8348]
[1725320595616,7.3793,135.52,135.48,7.3809]
[1725320596398,18.4429,135.56,135.49,7.3801]
[1725320596399,29.10952645,135.56,135.49,7.3801]
[1725320596716,20.0,135.55,135.49,7.3801]
[1725320597311,7.3785,135.53,135.49,7.3801]
[1725320598024,7.3785,135.53,135.48,7.3811]
[1725320601139,7.3785,135.53,135.49,24.003]
[1725320604328,7.38,135.5,135.49,16.6225]
[1725320604627,7.3791,135.52,135.49,16.6225]
[1725320606030,10.66662645,135.54,135.49,24.003]
[1725320606407,7.3787,135.53,135.49,16.6225]
[1725320607507,7.3792,135.52,135.49,16.6225]
[1725320614110,7.3792,135.52,135.48,25.8331]
[1725320615713,7.3796,135.51,135.48,18.4522]
[1725320617437,7.3796,135.51,135.48,19.92826933]
[1725320617726,7.3796,135.51,135.48,18.4522]
[1725320622526,7.3791,135.52,135.48,18.4522]
[1725320622832,7.3791,135.52,135.49,1.47595808]
[1725320623637,7.3791,135.52,135.48,25.8333]
[1725320624714,20.0,135.55,135.48,25.8333]
[1725320624715,7.3785,135.53,135.49,8.85634436]
[1725320625229,7.3785,135.53,135.49,7.3805]
[1725320626124,7.3785,135.53,135.48,25.8332]
[1725320626330,7.3791,135.52,135.48,25.8332]
[1725320630238,7.3797,135.51,135.46,15.1674]
[1725320631442,7.3797,135.51,135.47,7.3816]
[1725320631626,10.66662645,135.52,135.46,15.1674]
[1725320631824,7.3801,135.5,135.46,15.1674]
[1725320632135,7.3801,135.5,135.46,22.5495]
[1725320632636,18.04672645,135.5,135.46,22.5495]
[1725320632847,0.12549,135.49,135.46,22.5495]
[1725320633344,7.3801,135.5,135.46,24.02582948]
[1725320634319,10.79211645,135.49,135.46,15.1674]
[1725320635446,0.12549,135.49,135.46,15.1674]
[1725320636626,63.29710645,135.51,135.46,15.1674]
[1725320636940,7.379,135.52,135.47,7.3816]
[1725320637521,18.04542645,135.53,135.48,7.3807]
[1725320637844,7.379,135.52,135.48,7.3807]
[1725320638226,7.379,135.52,135.47,25.8347]
[1725320638529,0.12549,135.5,135.47,18.4532]
[1725320639048,7.50589,135.5,135.46,15.1674]
[1725320640240,63.17161645,135.51,135.46,22.5495]
[1725320640439,7.3785,135.53,135.48,7.3807]
[1725320641321,7.3785,135.53,135.46,33.6223]
[1725320641647,27.3774,135.55,135.48,18.4523]
[1725320641827,27.3774,135.55,135.49,8.85588474]
[1725320642143,7.3785,135.53,135.48,18.4523]
[1725320642554,30.66662645,135.55,135.48,18.4523]
[1725320642724,30.66662645,135.55,135.49,1.47581125]
[1725320642923,0.12549,135.54,135.48,18.4523]
[1725320643255,7.50359,135.54,135.49,7.3801]
[1725320645241,7.50359,135.54,135.5,7.38]
[1725320646143,7.50359,135.54,135.49,7.3804]
[1725320651525,7.50359,135.54,135.5,7.3799]
[1725320654824,7.3781,135.54,135.5,7.3799]
[1725320655043,15.2886,135.57,135.51,1.47580628]
[1725320655225,22.6652,135.57,135.52,7.3785]
[1725320656451,0.25098,135.56,135.52,7.3785]
[1725320657530,0.12549,135.56,135.53,7.3783]
[1725320657730,22.6652,135.57,135.53,7.3783]
[1725320658840,0.12549,135.57,135.54,7.3778]
[1725320659037,45.37647,135.57,135.54,7.3778]
[1725320659949,22.0968,135.6,135.55,7.3773]
[1725320660260,40.13842645,135.6,135.55,8.85260393]
[1725320660955,18.04162645,135.6,135.55,8.85260393]
[1725320661453,45.37647,135.59,135.55,7.3773]
[1725320661759,45.37647,135.59,135.55,8.85261981]
[1725320661935,0.25098,135.59,135.55,8.85261981]
[1725320662562,0.25098,135.59,135.55,7.3773]
[1725320664050,0.12549,135.59,135.55,7.3773]
[1725320664437,0.12549,135.59,135.56,7.3767]
[1725320664841,18.04162645,135.6,135.56,7.3767]
[1725320665364,0.12549,135.59,135.55,7.3772]
[1725320670152,10.66662645,135.58,135.54,25.8218]
[1725320670338,0.12549,135.57,135.54,25.8218]
[1725320671046,63.16731645,135.59,135.55,7.3771]
[1725320671246,18.16731645,135.59,135.55,7.3771]
[1725320673163,7.3757,135.58,135.54,25.8218]
[1725320673358,18.16731645,135.59,135.54,25.8218]
[1725320673660,0.12549,135.58,135.54,25.8218]
[1725320676965,0.12549,135.58,135.54,25.8218]
[1725320677359,0.12549,135.58,135.55,7.3772]
[1725320677660,10.66662645,135.61,135.56,7.3764]
[1725320677962,45.37647,135.6,135.56,7.3764]
[1725320678643,18.04192645,135.59,135.55,7.3772]
[1725320678842,41.85903313,135.63,135.56,19.9166191]
[1725320679146,27.3736,135.62,135.57,7.3761]
[1725320679338,7.3736,135.62,135.57,7.3761]
[1725320680068,7.3736,135.62,135.58,1.47498907]
[1725320680263,21.2929,135.63,135.58,8.85028907]
[1725320680766,10.66662645,135.64,135.58,8.85028907]
[1725320681141,10.66662645,135.64,135.58,7.3753]
[1725320681463,7.62408,135.63,135.58,7.3753]
[1725320681665,7.3731,135.63,135.58,7.3753]
[1725320682165,7.372,135.65,135.59,1.47480695]
[1725320682339,7.3707,135.68,135.62,7.3734]
[1725320682544,7.3707,135.68,135.63,1.4744425]
[1725320683045,7.3707,135.68,135.63,7.3727]
[1725320685373,0.25098,135.67,135.63,7.3727]
[1725320686161,7.3698,135.69,135.64,7.3719]
[1725320686463,7.3698,135.69,135.64,7.3723]
[1725320687571,10.66662645,135.68,135.64,7.3723]
[1725320688642,18.03692645,135.68,135.64,7.3723]
[1725320689742,18.03692645,135.68,135.63,25.8052]
[1725320689972,0.12549,135.67,135.63,25.8052]
[1725320690354,7.49639,135.67,135.63,25.8052]
[1725320690859,7.3709,135.67,135.63,25.8052]
[1725320691066,18.03702645,135.68,135.63,25.8052]
[1725320694975,0.12549,135.67,135.61,7.3735]
[1725320695159,45.37647,135.67,135.6,18.4357]
[1725320695481,45.37647,135.67,135.61,1.47453594]
[1725320696246,7.3715,135.66,135.62,7.3735]
[1725320697475,52.74737,135.67,135.62,7.3735]
[1725320697675,7.62188,135.67,135.62,7.3735]
[1725320699356,10.79211645,135.66,135.61,7.3739]
[1725320699563,0.12549,135.65,135.61,7.3739]
[1725320699762,0.12549,135.65,135.61,8.84848704]
[1725320700181,0.12549,135.65,135.61,7.3739]
[1725320700362,7.49749,135.65,135.61,7.3739]
[1725320700566,7.3739,135.62,135.57,25.8159]
[1725320700767,7.3731,135.63,135.58,7.3755]
[1725320701158,7.3731,135.63,135.58,8.85036561]
[1725320701680,7.3726,135.64,135.59,7.3746]
[1725320702751,0.12549,135.63,135.58,7.3755]
[1725320702969,45.12549,135.64,135.58,7.3755]
[1725320703162,0.25098,135.63,135.58,7.3755]
[1725320703968,0.12549,135.62,135.58,7.3755]
[1725320704373,52.49909,135.62,135.58,7.3755]
[1725320705169,18.29070645,135.63,135.58,7.3755]
[1725320708182,18.29070645,135.63,135.59,7.3751]
[1725320708382,7.62408,135.63,135.59,7.3751]
[1725320710485,7.3724,135.64,135.6,8.84936621]
[1725320710792,22.5902,135.65,135.6,8.84936621]